[Event "Late-Titled-Tuesday-Blitz-August-29-2023"]
[Site "Chess.com"]
[Date "2023.08.29"]
[Round "9"]
[White "rdarruda"]
[Black "KNVB"]
[Result "1/2-1/2"]
[WhiteElo "2588"]
[BlackElo "2808"]
[TimeControl "180+1"]
[EndTime "15:42:41 PDT"]
[Termination "Game drawn by repetition"]

1. d4 {[%clk 0:02:52.5]} 1... e5 {[%clk 0:02:51.3]} 2. dxe5 {[%clk 0:02:51.7]}
2... Nc6 {[%clk 0:02:37]} 3. Nf3 {[%clk 0:02:51.7]} 3... Qe7 {[%clk 0:02:37.5]}
4. Nc3 {[%clk 0:02:50.7]} 4... Nxe5 {[%clk 0:02:37.7]} 5. Nxe5 {[%clk
0:02:47.2]} 5... Qxe5 {[%clk 0:02:38.6]} 6. e4 {[%clk 0:02:47.1]} 6... Bc5
{[%clk 0:02:35.8]} 7. Qd5 {[%clk 0:02:24.1]} 7... Bd4 {[%clk 0:02:30.9]} 8.
Qxe5+ {[%clk 0:02:20.3]} 8... Bxe5 {[%clk 0:02:31.8]} 9. Bd2 {[%clk 0:02:19.9]}
9... Nf6 {[%clk 0:02:28.5]} 10. Bd3 {[%clk 0:02:16.9]} 10... O-O {[%clk
0:02:26.8]} 11. O-O-O {[%clk 0:02:16.4]} 11... Re8 {[%clk 0:02:23.5]} 12. f3
{[%clk 0:02:13.9]} 12... d6 {[%clk 0:02:21]} 13. Nb5 {[%clk 0:02:10.8]} 13... d5
{[%clk 0:02:20.2]} 14. exd5 {[%clk 0:02:02.1]} 14... a6 {[%clk 0:02:14.4]} 15.
Nc3 {[%clk 0:02:00]} 15... Bxc3 {[%clk 0:02:14.2]} 16. Bxc3 {[%clk 0:01:59.6]}
16... Nxd5 {[%clk 0:02:14.9]} 17. Rhe1 {[%clk 0:01:54.4]} 17... Rxe1 {[%clk
0:02:11]} 18. Rxe1 {[%clk 0:01:53.9]} 18... Be6 {[%clk 0:02:09.8]} 19. Bd2
{[%clk 0:01:52.5]} 19... b5 {[%clk 0:02:08.7]} 20. a3 {[%clk 0:01:50.7]} 20...
h6 {[%clk 0:02:01]} 21. Rd1 {[%clk 0:01:47.9]} 21... Rd8 {[%clk 0:01:53.6]} 22.
Be2 {[%clk 0:01:40.9]} 22... Kf8 {[%clk 0:01:22.2]} 23. c4 {[%clk 0:01:39]}
23... bxc4 {[%clk 0:01:15]} 24. Bxc4 {[%clk 0:01:39.9]} 24... Ke7 {[%clk
0:01:01.5]} 25. Bxa6 {[%clk 0:01:32.7]} 25... c5 {[%clk 0:00:56.4]} 26. Bc4
{[%clk 0:01:22.7]} 26... g5 {[%clk 0:00:13.1]} 27. a4 {[%clk 0:01:11.5]} 27...
Ne3 {[%clk 0:00:06.4]} 28. Bxe3 {[%clk 0:01:06.7]} 28... Rxd1+ {[%clk
0:00:07.3]} 29. Kxd1 {[%clk 0:01:06.6]} 29... Bxc4 {[%clk 0:00:08.2]} 30. Bxc5+
{[%clk 0:01:06.7]} 30... Ke6 {[%clk 0:00:07.3]} 31. a5 {[%clk 0:01:03.2]} 31...
Bf1 {[%clk 0:00:03.8]} 32. g3 {[%clk 0:01:02.1]} 32... h5 {[%clk 0:00:03]} 33.
Ke1 {[%clk 0:00:55.2]} 33... Bb5 {[%clk 0:00:02.2]} 34. Kd2 {[%clk 0:00:55.3]}
34... Kd5 {[%clk 0:00:01.9]} 35. Be7 {[%clk 0:00:55.5]} 35... g4 {[%clk
0:00:02.6]} 36. f4 {[%clk 0:00:53.6]} 36... Ba6 {[%clk 0:00:02]} 37. Bf6 {[%clk
0:00:47.4]} 37... Bb5 {[%clk 0:00:02.2]} 38. Ke3 {[%clk 0:00:46.3]} 38... Ba6
{[%clk 0:00:02.4]} 39. Bc3 {[%clk 0:00:46.4]} 39... f5 {[%clk 0:00:02.6]} 40.
Kd2 {[%clk 0:00:41.2]} 40... Kc4 {[%clk 0:00:02.9]} 41. Be5 {[%clk 0:00:41.1]}
41... Bb5 {[%clk 0:00:03.1]} 42. Kc2 {[%clk 0:00:39.1]} 42... Ba6 {[%clk
0:00:02.7]} 43. b3+ {[%clk 0:00:38.4]} 43... Kd5 {[%clk 0:00:02.6]} 44. Kc3
{[%clk 0:00:37.5]} 44... Bb5 {[%clk 0:00:02.8]} 45. Kb4 {[%clk 0:00:37.1]} 45...
Ba6 {[%clk 0:00:03.7]} 46. Kc3 {[%clk 0:00:36.7]} 46... Bb5 {[%clk 0:00:04]} 47.
Bf6 {[%clk 0:00:36.8]} 47... Ba6 {[%clk 0:00:04.3]} 48. Bd8 {[%clk 0:00:33]}
48... Bb5 {[%clk 0:00:04.4]} 49. Kb4 {[%clk 0:00:30.4]} 49... Ba6 {[%clk
0:00:05.3]} 50. Kc3 {[%clk 0:00:30.6]} 50... Bb5 {[%clk 0:00:05.7]} 51. Kb4
{[%clk 0:00:30.6]} 51... Ba6 {[%clk 0:00:06.6]} 52. Kc3 {[%clk 0:00:30.6]}
1/2-1/2

[Event "Late-Titled-Tuesday-Blitz-August-29-2023"]
[Site "Chess.com"]
[Date "2023.08.29"]
[Round "9"]
[White "BillieKimbah"]
[Black "GMBenjaminBok"]
[Result "1-0"]
[WhiteElo "3059"]
[BlackElo "2926"]
[TimeControl "180+1"]
[EndTime "15:42:43 PDT"]
[Termination "BillieKimbah won by resignation"]

1. d4 {[%clk 0:03:00.9]} 1... Nf6 {[%clk 0:02:59.8]} 2. Nf3 {[%clk 0:03:01.6]}
2... e6 {[%clk 0:02:59.9]} 3. Bg5 {[%clk 0:03:02.1]} 3... c5 {[%clk 0:02:59.4]}
4. d5 {[%clk 0:03:01.5]} 4... h6 {[%clk 0:02:56.3]} 5. Bxf6 {[%clk 0:02:59.9]}
5... Qxf6 {[%clk 0:02:57.2]} 6. Nc3 {[%clk 0:03:00.4]} 6... d6 {[%clk
0:02:45.9]} 7. e4 {[%clk 0:02:58.9]} 7... a6 {[%clk 0:02:44.2]} 8. a4 {[%clk
0:02:47.6]} 8... g6 {[%clk 0:02:36.9]} 9. Bc4 {[%clk 0:02:38]} 9... Bg7 {[%clk
0:02:29.5]} 10. O-O {[%clk 0:01:49.6]} 10... e5 {[%clk 0:02:10.7]} 11. Nd2
{[%clk 0:01:49.2]} 11... O-O {[%clk 0:02:10.3]} 12. a5 {[%clk 0:01:49.1]} 12...
Qe7 {[%clk 0:02:04.9]} 13. Be2 {[%clk 0:01:48.6]} 13... f5 {[%clk 0:02:00.4]}
14. Nc4 {[%clk 0:01:48.5]} 14... Nd7 {[%clk 0:02:00.2]} 15. Rb1 {[%clk
0:01:46.9]} 15... Rb8 {[%clk 0:01:54]} 16. b4 {[%clk 0:01:44.3]} 16... cxb4
{[%clk 0:01:51.8]} 17. Rxb4 {[%clk 0:01:45.2]} 17... Nc5 {[%clk 0:01:51.3]} 18.
Rb6 {[%clk 0:01:44.9]} 18... Rd8 {[%clk 0:01:41.3]} 19. Qb1 {[%clk 0:01:40.3]}
19... fxe4 {[%clk 0:01:17.2]} 20. Qb4 {[%clk 0:01:39.6]} 20... Qc7 {[%clk
0:01:16.2]} 21. Rb1 {[%clk 0:01:29.6]} 21... Bf5 {[%clk 0:00:59.5]} 22. h3
{[%clk 0:01:23.6]} 22... h5 {[%clk 0:00:58.8]} 23. Nd1 {[%clk 0:01:10.4]} 23...
Bh6 {[%clk 0:00:47.9]} 24. Nde3 {[%clk 0:01:10]} 24... Bxe3 {[%clk 0:00:27.3]}
25. Nxe3 {[%clk 0:01:10.9]} 25... Qe7 {[%clk 0:00:19.5]} 26. Nc4 {[%clk
0:00:52.4]} 26... Qc7 {[%clk 0:00:18.2]} 27. Qd2 {[%clk 0:00:48.6]} 27... Kg7
{[%clk 0:00:14.3]} 28. Qg5 {[%clk 0:00:47.9]} 28... Nd7 {[%clk 0:00:05.3]} 29.
Rxd6 {[%clk 0:00:46.1]} 29... Nf8 {[%clk 0:00:05.3]} 30. Qf6+ {[%clk 0:00:38.9]}
30... Kh7 {[%clk 0:00:04.4]} 31. Rbb6 {[%clk 0:00:36.8]} 31... Rxd6 {[%clk
0:00:03.9]} 32. Nxd6 {[%clk 0:00:34]} 32... Qg7 {[%clk 0:00:03.1]} 33. Qxg7+
{[%clk 0:00:28.4]} 33... Kxg7 {[%clk 0:00:04]} 34. Bxa6 {[%clk 0:00:24.7]} 34...
Nd7 {[%clk 0:00:03.5]} 35. Rxb7 {[%clk 0:00:24.6]} 35... Ra8 {[%clk 0:00:04.1]}
36. Nxf5+ {[%clk 0:00:23]} 36... gxf5 {[%clk 0:00:03.8]} 37. Rxd7+ {[%clk
0:00:23]} 37... Kf6 {[%clk 0:00:04.3]} 38. Rd6+ {[%clk 0:00:21.2]} 38... Kg5
{[%clk 0:00:04.2]} 39. Re6 {[%clk 0:00:17.1]} 39... h4 {[%clk 0:00:03.8]} 40. c4
{[%clk 0:00:16.2]} 40... Rb8 {[%clk 0:00:03.4]} 41. Bb5 {[%clk 0:00:16.3]} 1-0

[Event "Late-Titled-Tuesday-Blitz-August-29-2023"]
[Site "Chess.com"]
[Date "2023.08.29"]
[Round "9"]
[White "wild3000"]
[Black "pedromartinez91"]
[Result "0-1"]
[WhiteElo "2303"]
[BlackElo "2492"]
[TimeControl "180+1"]
[EndTime "15:42:45 PDT"]
[Termination "pedromartinez91 won on time"]

1. a3 {[%clk 0:02:14.8]} 1... a6 {[%clk 0:02:56.8]} 2. g4 {[%clk 0:02:13.3]}
2... h6 {[%clk 0:02:54.4]} 3. h3 {[%clk 0:02:13]} 3... a5 {[%clk 0:02:52.9]} 4.
Bg2 {[%clk 0:02:12.7]} 4... h5 {[%clk 0:02:53]} 5. g5 {[%clk 0:02:11.6]} 5...
Ra6 {[%clk 0:02:52.9]} 6. d4 {[%clk 0:02:11]} 6... g6 {[%clk 0:02:52.2]} 7. c4
{[%clk 0:02:10.3]} 7... Bg7 {[%clk 0:02:52.2]} 8. Nc3 {[%clk 0:02:10.2]} 8... d6
{[%clk 0:02:47.7]} 9. e4 {[%clk 0:02:01.5]} 9... c5 {[%clk 0:02:45.3]} 10. Be3
{[%clk 0:01:57.9]} 10... Nc6 {[%clk 0:02:44.4]} 11. dxc5 {[%clk 0:01:55.5]}
11... Bxc3+ {[%clk 0:02:39.2]} 12. bxc3 {[%clk 0:01:54.6]} 12... dxc5 {[%clk
0:02:40.1]} 13. Qxd8+ {[%clk 0:01:49.6]} 13... Nxd8 {[%clk 0:02:41]} 14. Bxc5
{[%clk 0:01:47.7]} 14... e5 {[%clk 0:02:40.3]} 15. Be3 {[%clk 0:01:27.1]} 15...
Ne7 {[%clk 0:02:22.2]} 16. Nf3 {[%clk 0:01:25.1]} 16... Ndc6 {[%clk 0:02:15.9]}
17. O-O {[%clk 0:01:22.6]} 17... Be6 {[%clk 0:02:15.6]} 18. Nd2 {[%clk
0:01:21.4]} 18... O-O {[%clk 0:02:09.8]} 19. Rfb1 {[%clk 0:01:17.8]} 19... Rd8
{[%clk 0:02:08.5]} 20. Rxb7 {[%clk 0:01:15.2]} 20... Rd3 {[%clk 0:02:08]} 21.
Rc1 {[%clk 0:01:10.3]} 21... a4 {[%clk 0:02:04.9]} 22. Bf1 {[%clk 0:01:08.5]}
22... Rd8 {[%clk 0:02:02.2]} 23. Rcb1 {[%clk 0:00:59.9]} 23... Raa8 {[%clk
0:01:56.3]} 24. Nf3 {[%clk 0:00:48.7]} 24... Re8 {[%clk 0:01:54.9]} 25. c5
{[%clk 0:00:40.3]} 25... Na5 {[%clk 0:01:50.9]} 26. R7b4 {[%clk 0:00:36.7]}
26... Nec6 {[%clk 0:01:48.6]} 27. Rxa4 {[%clk 0:00:36.7]} 27... Bb3 {[%clk
0:01:46.8]} 28. Rb4 {[%clk 0:00:35.2]} 28... Be6 {[%clk 0:01:42.5]} 29. Bb5
{[%clk 0:00:33.2]} 29... Rec8 {[%clk 0:01:42]} 30. Ra4 {[%clk 0:00:27]} 30...
Bxh3 {[%clk 0:01:35.2]} 31. c4 {[%clk 0:00:24.3]} 31... Be6 {[%clk 0:01:29.8]}
32. Nd2 {[%clk 0:00:23.1]} 32... Kf8 {[%clk 0:01:25.1]} 33. Nb3 {[%clk
0:00:21.4]} 33... Nxb3 {[%clk 0:01:24]} 34. Rxa8 {[%clk 0:00:21.1]} 34... Rxa8
{[%clk 0:01:23.3]} 35. Bxc6 {[%clk 0:00:20.6]} 35... Rxa3 {[%clk 0:01:21.8]} 36.
Bd5 {[%clk 0:00:20.6]} 36... Ke7 {[%clk 0:01:17]} 37. c6 {[%clk 0:00:20.1]}
37... Kd6 {[%clk 0:01:16.4]} 38. Rd1 {[%clk 0:00:18.2]} 38... Kc7 {[%clk
0:01:13]} 39. f4 {[%clk 0:00:18.2]} 39... Na5 {[%clk 0:01:09.6]} 40. Bc5 {[%clk
0:00:17.3]} 40... Rg3+ {[%clk 0:01:06.8]} 41. Kf2 {[%clk 0:00:16.5]} 41... exf4
{[%clk 0:01:07.7]} 42. e5 {[%clk 0:00:16.2]} 42... Nxc6 {[%clk 0:01:07]} 43.
Bd6+ {[%clk 0:00:16.1]} 43... Kd7 {[%clk 0:01:06.6]} 44. Ra1 {[%clk 0:00:15]}
44... Rd3 {[%clk 0:01:01.4]} 45. Ke2 {[%clk 0:00:09.3]} 45... Rd4 {[%clk
0:00:59.7]} 46. Bc5 {[%clk 0:00:08.5]} 46... Rxc4 {[%clk 0:00:58.1]} 47. Bxc4
{[%clk 0:00:07.8]} 47... Bxc4+ {[%clk 0:00:59]} 48. Kf3 {[%clk 0:00:07.7]} 48...
Nxe5+ {[%clk 0:00:59.9]} 49. Ke4 {[%clk 0:00:05.8]} 49... Nc6 {[%clk 0:00:59.5]}
50. Kxf4 {[%clk 0:00:03.4]} 50... Ke6 {[%clk 0:00:59.7]} 51. Be3 {[%clk
0:00:03]} 51... Bd5 {[%clk 0:00:59.6]} 52. Re1 {[%clk 0:00:02.4]} 52... Kd7
{[%clk 0:00:59.5]} 53. Kg3 {[%clk 0:00:02.6]} 53... Ne5 {[%clk 0:00:58.4]} 54.
Bf4 {[%clk 0:00:02.4]} 54... Nd3 {[%clk 0:00:57.9]} 55. Rd1 {[%clk 0:00:02.1]}
55... Be4 {[%clk 0:00:58.2]} 56. Rd2 {[%clk 0:00:01.5]} 56... Ke6 {[%clk
0:00:58.6]} 57. Be3 {[%clk 0:00:01.7]} 57... Kf5 {[%clk 0:00:58.8]} 0-1

[Event "Late-Titled-Tuesday-Blitz-August-29-2023"]
[Site "Chess.com"]
[Date "2023.08.29"]
[Round "9"]
[White "kiwibobo"]
[Black "Training_Day"]
[Result "1-0"]
[WhiteElo "2394"]
[BlackElo "2432"]
[TimeControl "180+1"]
[EndTime "15:42:46 PDT"]
[Termination "kiwibobo won on time"]

1. e4 {[%clk 0:02:59.8]} 1... c6 {[%clk 0:02:56.1]} 2. d4 {[%clk 0:02:59.1]}
2... d5 {[%clk 0:02:56]} 3. Nc3 {[%clk 0:02:59.2]} 3... dxe4 {[%clk 0:02:54]} 4.
Nxe4 {[%clk 0:02:59.8]} 4... Bf5 {[%clk 0:02:53.9]} 5. Ng3 {[%clk 0:02:59.9]}
5... Bg6 {[%clk 0:02:54.1]} 6. h4 {[%clk 0:03:00.4]} 6... h6 {[%clk 0:02:54]} 7.
Nf3 {[%clk 0:03:00.9]} 7... Nd7 {[%clk 0:02:53.4]} 8. h5 {[%clk 0:03:00.9]} 8...
Bh7 {[%clk 0:02:53.1]} 9. Bd3 {[%clk 0:03:01.5]} 9... Bxd3 {[%clk 0:02:52.5]}
10. Qxd3 {[%clk 0:03:02.2]} 10... e6 {[%clk 0:02:53]} 11. Bd2 {[%clk 0:03:02.5]}
11... Ngf6 {[%clk 0:02:48.9]} 12. O-O-O {[%clk 0:03:01.5]} 12... Be7 {[%clk
0:02:48.8]} 13. Ne4 {[%clk 0:03:01.2]} 13... Nxe4 {[%clk 0:02:33.7]} 14. Qxe4
{[%clk 0:03:01.8]} 14... Nf6 {[%clk 0:02:33.8]} 15. Qe2 {[%clk 0:03:01.1]} 15...
Qd5 {[%clk 0:02:31.4]} 16. c4 {[%clk 0:02:59.5]} 16... Qe4 {[%clk 0:02:31]} 17.
Qxe4 {[%clk 0:02:59.6]} 17... Nxe4 {[%clk 0:02:31.7]} 18. Be3 {[%clk 0:03:00.4]}
18... f5 {[%clk 0:02:18.1]} 19. Ne5 {[%clk 0:02:56.7]} 19... Bg5 {[%clk
0:01:15.6]} 20. Rhe1 {[%clk 0:02:38.5]} 20... Nxf2 {[%clk 0:01:03.5]} 21. Bxg5
{[%clk 0:02:16.2]} 21... hxg5 {[%clk 0:00:58.9]} 22. Ng6 {[%clk 0:01:54.6]}
22... Rxh5 {[%clk 0:00:57.6]} 23. Rxe6+ {[%clk 0:01:42.7]} 23... Kf7 {[%clk
0:00:57.6]} 24. Rde1 {[%clk 0:01:42.4]} 24... Ne4 {[%clk 0:00:57.4]} 25. R6xe4
{[%clk 0:01:33.6]} 25... fxe4 {[%clk 0:00:58.3]} 26. Ne5+ {[%clk 0:01:33.2]}
26... Kg8 {[%clk 0:00:54.6]} 27. Rxe4 {[%clk 0:01:32.9]} 27... Re8 {[%clk
0:00:46.7]} 28. Kd2 {[%clk 0:01:17.6]} 28... Rh4 {[%clk 0:00:33.1]} 29. Kd3
{[%clk 0:01:12]} 29... c5 {[%clk 0:00:25.2]} 30. d5 {[%clk 0:01:06.9]} 30... Rf4
{[%clk 0:00:13.4]} 31. Rxf4 {[%clk 0:01:01.6]} 31... gxf4 {[%clk 0:00:13.6]} 32.
Ke4 {[%clk 0:00:51.5]} 32... g5 {[%clk 0:00:13.6]} 33. d6 {[%clk 0:00:48.6]}
33... Kg7 {[%clk 0:00:02]} 34. Kd5 {[%clk 0:00:47.5]} 34... Rd8 {[%clk
0:00:01.2]} 35. Kxc5 {[%clk 0:00:34.4]} 35... Kf6 {[%clk 0:00:01.6]} 36. Kd5
{[%clk 0:00:31.2]} 36... Kf5 {[%clk 0:00:02]} 37. d7 {[%clk 0:00:29.3]} 37... g4
{[%clk 0:00:02.4]} 38. Kd6 {[%clk 0:00:22.1]} 38... f3 {[%clk 0:00:02.6]} 39.
gxf3 {[%clk 0:00:21.5]} 39... g3 {[%clk 0:00:03.1]} 40. Ng4 {[%clk 0:00:14.7]}
40... Kf4 {[%clk 0:00:03]} 41. Ke7 {[%clk 0:00:12.5]} 1-0

[Event "Late-Titled-Tuesday-Blitz-August-29-2023"]
[Site "Chess.com"]
[Date "2023.08.29"]
[Round "9"]
[White "KejJaj"]
[Black "ToddBryant"]
[Result "1-0"]
[WhiteElo "2222"]
[BlackElo "2327"]
[TimeControl "180+1"]
[EndTime "15:42:47 PDT"]
[Termination "KejJaj won on time"]

1. d4 {[%clk 0:03:00.9]} 1... Nf6 {[%clk 0:02:58.7]} 2. Bf4 {[%clk 0:03:01.4]}
2... g6 {[%clk 0:02:58.3]} 3. Nc3 {[%clk 0:03:00.3]} 3... d5 {[%clk 0:02:58.9]}
4. e3 {[%clk 0:03:00.2]} 4... Bg7 {[%clk 0:02:59]} 5. Nb5 {[%clk 0:03:00.5]}
5... Na6 {[%clk 0:02:58.1]} 6. Nc3 {[%clk 0:03:00.4]} 6... O-O {[%clk 0:02:57]}
7. Bxa6 {[%clk 0:03:00.1]} 7... bxa6 {[%clk 0:02:57.7]} 8. Be5 {[%clk
0:03:00.4]} 8... c5 {[%clk 0:02:56.4]} 9. dxc5 {[%clk 0:03:00.4]} 9... Qa5
{[%clk 0:02:53.3]} 10. Qd4 {[%clk 0:03:00.8]} 10... Be6 {[%clk 0:02:21]} 11. Ne2
{[%clk 0:02:53.7]} 11... Rfc8 {[%clk 0:02:15.5]} 12. b4 {[%clk 0:02:52.9]} 12...
Qd8 {[%clk 0:02:00.1]} 13. O-O {[%clk 0:02:50.7]} 13... Qf8 {[%clk 0:01:43.3]}
14. a3 {[%clk 0:02:43.3]} 14... Nd7 {[%clk 0:01:22.4]} 15. Bxg7 {[%clk
0:02:42.6]} 15... Qxg7 {[%clk 0:01:23.3]} 16. Qxg7+ {[%clk 0:02:22.4]} 16...
Kxg7 {[%clk 0:01:24.2]} 17. Nf4 {[%clk 0:02:17.4]} 17... Nf6 {[%clk 0:01:17.2]}
18. Rfd1 {[%clk 0:02:16.9]} 18... Rd8 {[%clk 0:01:11.9]} 19. Rd2 {[%clk
0:02:08.1]} 19... g5 {[%clk 0:01:09.5]} 20. Nxe6+ {[%clk 0:02:00.3]} 20... fxe6
{[%clk 0:01:10.4]} 21. Ne2 {[%clk 0:02:00.4]} 21... Ne4 {[%clk 0:01:07.6]} 22.
Rd3 {[%clk 0:01:57.3]} 22... a5 {[%clk 0:01:04.4]} 23. c3 {[%clk 0:01:53.8]}
23... axb4 {[%clk 0:00:58.5]} 24. cxb4 {[%clk 0:01:52.4]} 24... Rdc8 {[%clk
0:00:50.5]} 25. Nd4 {[%clk 0:01:49.1]} 25... Kf7 {[%clk 0:00:46]} 26. f3 {[%clk
0:01:45.8]} 26... Nf6 {[%clk 0:00:44.3]} 27. Rc1 {[%clk 0:01:43.7]} 27... Rab8
{[%clk 0:00:36.3]} 28. Nb3 {[%clk 0:01:42.2]} 28... Nd7 {[%clk 0:00:30]} 29. Na5
{[%clk 0:01:40.3]} 29... Ne5 {[%clk 0:00:28.9]} 30. Rb3 {[%clk 0:01:30.3]} 30...
Nc6 {[%clk 0:00:25.4]} 31. Nxc6 {[%clk 0:01:29.1]} 31... Rxc6 {[%clk 0:00:26.3]}
32. b5 {[%clk 0:01:27.1]} 32... Rcc8 {[%clk 0:00:23.1]} 33. a4 {[%clk
0:01:25.1]} 33... e5 {[%clk 0:00:23.4]} 34. c6 {[%clk 0:01:18.9]} 34... Ke6
{[%clk 0:00:19.8]} 35. a5 {[%clk 0:01:17.7]} 35... Kd6 {[%clk 0:00:20.4]} 36.
Kf2 {[%clk 0:01:14.9]} 36... a6 {[%clk 0:00:19.2]} 37. b6 {[%clk 0:01:09.2]}
37... Rxc6 {[%clk 0:00:18.8]} 38. Rbc3 {[%clk 0:01:06.5]} 38... Rxc3 {[%clk
0:00:15.9]} 39. Rxc3 {[%clk 0:01:06.4]} 39... Rb7 {[%clk 0:00:14.3]} 40. Ke2
{[%clk 0:01:03.1]} 40... e6 {[%clk 0:00:14.9]} 41. Kd3 {[%clk 0:01:01.5]} 41...
h6 {[%clk 0:00:11.7]} 42. Rc8 {[%clk 0:01:00.4]} 42... Ke7 {[%clk 0:00:11.2]}
43. Ra8 {[%clk 0:00:58.3]} 43... Kd6 {[%clk 0:00:10.8]} 44. Rxa6 {[%clk
0:00:58]} 44... Kc6 {[%clk 0:00:10.4]} 45. Ra8 {[%clk 0:00:55.5]} 45... Kb5
{[%clk 0:00:10.9]} 46. Kc3 {[%clk 0:00:51]} 46... h5 {[%clk 0:00:08.1]} 47. g3
{[%clk 0:00:42.3]} 47... Rd7 {[%clk 0:00:06.7]} 48. Ra7 {[%clk 0:00:36.4]} 48...
d4+ {[%clk 0:00:06.7]} 49. exd4 {[%clk 0:00:35.8]} 49... exd4+ {[%clk
0:00:07.6]} 50. Kd3 {[%clk 0:00:35.3]} 50... Rd8 {[%clk 0:00:06.8]} 51. b7
{[%clk 0:00:33.7]} 51... Kc6 {[%clk 0:00:07.5]} 52. Ra8 {[%clk 0:00:33.1]} 1-0

[Event "Late-Titled-Tuesday-Blitz-August-29-2023"]
[Site "Chess.com"]
[Date "2023.08.29"]
[Round "9"]
[White "matagordo"]
[Black "Karttunen"]
[Result "1-0"]
[WhiteElo "2225"]
[BlackElo "2560"]
[TimeControl "180+1"]
[EndTime "15:42:48 PDT"]
[Termination "matagordo won by checkmate"]

1. d4 {[%clk 0:03:00.9]} 1... Nf6 {[%clk 0:02:59.7]} 2. Bf4 {[%clk 0:03:00.7]}
2... e6 {[%clk 0:02:59.5]} 3. e3 {[%clk 0:03:01.2]} 3... d5 {[%clk 0:02:59.6]}
4. Nf3 {[%clk 0:03:01.8]} 4... Bd6 {[%clk 0:02:59.5]} 5. Ne5 {[%clk 0:03:02.5]}
5... O-O {[%clk 0:02:52.6]} 6. Nd2 {[%clk 0:03:02.2]} 6... c5 {[%clk 0:02:51.7]}
7. c3 {[%clk 0:03:02.3]} 7... Qc7 {[%clk 0:02:50.5]} 8. Bd3 {[%clk 0:03:01.3]}
8... b6 {[%clk 0:02:43.9]} 9. Qf3 {[%clk 0:02:56.3]} 9... Bb7 {[%clk 0:02:41.3]}
10. Qh3 {[%clk 0:02:54.6]} 10... g6 {[%clk 0:02:23.3]} 11. Qh6 {[%clk 0:02:33]}
11... Ne4 {[%clk 0:02:14.1]} 12. h4 {[%clk 0:02:10.9]} 12... f6 {[%clk
0:01:59.5]} 13. Nxg6 {[%clk 0:02:10.8]} 13... hxg6 {[%clk 0:01:57.4]} 14. Qxg6+
{[%clk 0:02:08]} 14... Qg7 {[%clk 0:01:21.1]} 15. Bxe4 {[%clk 0:00:57.6]} 15...
Qxg6 {[%clk 0:01:17]} 16. Bxg6 {[%clk 0:00:56.7]} 16... Bxf4 {[%clk 0:01:13.4]}
17. exf4 {[%clk 0:00:56.2]} 17... cxd4 {[%clk 0:01:13.2]} 18. cxd4 {[%clk
0:00:56.3]} 18... Nc6 {[%clk 0:01:12.3]} 19. Nf3 {[%clk 0:00:44]} 19... f5
{[%clk 0:01:11.9]} 20. O-O {[%clk 0:00:38.8]} 20... Kg7 {[%clk 0:01:11.4]} 21.
h5 {[%clk 0:00:38.3]} 21... Rac8 {[%clk 0:01:07.7]} 22. Rfe1 {[%clk 0:00:37.9]}
22... Rf6 {[%clk 0:01:05.4]} 23. Ng5 {[%clk 0:00:33.1]} 23... Nxd4 {[%clk
0:00:53.1]} 24. Rad1 {[%clk 0:00:31.6]} 24... Nc2 {[%clk 0:00:41.5]} 25. Nxe6+
{[%clk 0:00:23.3]} 25... Kh6 {[%clk 0:00:41.1]} 26. Re5 {[%clk 0:00:18]} 26...
Nb4 {[%clk 0:00:29.2]} 27. g4 {[%clk 0:00:15]} 27... fxg4 {[%clk 0:00:28.6]} 28.
Ng5 {[%clk 0:00:13.5]} 28... Rc7 {[%clk 0:00:25.9]} 29. Ne6 {[%clk 0:00:04.9]}
29... Re7 {[%clk 0:00:24]} 30. f5 {[%clk 0:00:05.6]} 30... Na6 {[%clk
0:00:17.7]} 31. Re3 {[%clk 0:00:04.7]} 31... Nc5 {[%clk 0:00:17.6]} 32. Nxc5
{[%clk 0:00:04.9]} 32... Rxe3 {[%clk 0:00:17.3]} 33. Nxb7 {[%clk 0:00:04.1]}
33... Re2 {[%clk 0:00:16.8]} 34. Rxd5 {[%clk 0:00:02.9]} 34... Rxb2 {[%clk
0:00:16.9]} 35. Nd8 {[%clk 0:00:02.3]} 35... Kg7 {[%clk 0:00:14]} 36. Ne6+
{[%clk 0:00:02.4]} 36... Kh6 {[%clk 0:00:13.9]} 37. Rd7 {[%clk 0:00:02.1]} 37...
Rxg6 {[%clk 0:00:13.5]} 38. fxg6 {[%clk 0:00:02]} 38... Rb1+ {[%clk 0:00:11]}
39. Kg2 {[%clk 0:00:02]} 39... Rb2 {[%clk 0:00:10.1]} 40. Rh7# {[%clk
0:00:02.6]} 1-0

[Event "Late-Titled-Tuesday-Blitz-August-29-2023"]
[Site "Chess.com"]
[Date "2023.08.29"]
[Round "9"]
[White "Anton_Demchenko"]
[Black "SchmakAttack"]
[Result "1-0"]
[WhiteElo "2923"]
[BlackElo "2774"]
[TimeControl "180+1"]
[EndTime "15:42:49 PDT"]
[Termination "Anton_Demchenko won on time"]

1. e4 {[%clk 0:02:57.5]} 1... c5 {[%clk 0:02:57.3]} 2. Nf3 {[%clk 0:02:56.9]}
2... Nc6 {[%clk 0:02:52.4]} 3. Bb5 {[%clk 0:02:56.4]} 3... g6 {[%clk 0:02:50.3]}
4. O-O {[%clk 0:02:56.1]} 4... Bg7 {[%clk 0:02:43.6]} 5. d3 {[%clk 0:02:56.3]}
5... e5 {[%clk 0:02:38.8]} 6. a3 {[%clk 0:02:55.8]} 6... Nge7 {[%clk 0:02:33.4]}
7. b4 {[%clk 0:02:54.4]} 7... d6 {[%clk 0:02:07.2]} 8. Bg5 {[%clk 0:02:52.5]}
8... O-O {[%clk 0:01:59.5]} 9. bxc5 {[%clk 0:02:50.4]} 9... dxc5 {[%clk
0:02:00.4]} 10. Bxc6 {[%clk 0:02:50.1]} 10... bxc6 {[%clk 0:02:01.3]} 11. Nbd2
{[%clk 0:02:47.2]} 11... Be6 {[%clk 0:01:38.4]} 12. Be3 {[%clk 0:02:46.3]} 12...
Qd6 {[%clk 0:01:36.6]} 13. Ng5 {[%clk 0:02:43]} 13... c4 {[%clk 0:01:24.3]} 14.
Nxe6 {[%clk 0:02:41]} 14... Qxe6 {[%clk 0:01:25.2]} 15. Nxc4 {[%clk 0:02:39.9]}
15... f5 {[%clk 0:01:25.8]} 16. f3 {[%clk 0:02:39.2]} 16... h5 {[%clk
0:01:18.8]} 17. Qe1 {[%clk 0:02:36]} 17... f4 {[%clk 0:01:17.2]} 18. Bc5 {[%clk
0:02:34.6]} 18... g5 {[%clk 0:01:17.5]} 19. Rb1 {[%clk 0:02:29]} 19... Rf7
{[%clk 0:01:06.6]} 20. Nd6 {[%clk 0:02:25.1]} 20... Rf6 {[%clk 0:01:06.5]} 21.
Qc3 {[%clk 0:02:02.2]} 21... Rd8 {[%clk 0:01:00.6]} 22. Nb7 {[%clk 0:01:59.4]}
22... Ra8 {[%clk 0:00:49.6]} 23. Qb3 {[%clk 0:01:59.3]} 23... Ng6 {[%clk
0:00:48]} 24. Na5 {[%clk 0:01:54.1]} 24... g4 {[%clk 0:00:41.2]} 25. Qxe6+
{[%clk 0:01:47.2]} 25... Rxe6 {[%clk 0:00:42.1]} 26. Rb7 {[%clk 0:01:46.1]}
26... Bf8 {[%clk 0:00:32.1]} 27. Bxf8 {[%clk 0:01:42.1]} 27... Rxf8 {[%clk
0:00:33]} 28. Rxa7 {[%clk 0:01:36.1]} 28... Nh4 {[%clk 0:00:33]} 29. fxg4 {[%clk
0:01:25.5]} 29... hxg4 {[%clk 0:00:33.9]} 30. Nc4 {[%clk 0:01:22.8]} 30... Rb8
{[%clk 0:00:28]} 31. a4 {[%clk 0:01:12.2]} 31... Kh8 {[%clk 0:00:10.2]} 32. a5
{[%clk 0:01:11.5]} 32... Rg8 {[%clk 0:00:10.3]} 33. a6 {[%clk 0:00:59.6]} 33...
g3 {[%clk 0:00:10.8]} 34. h3 {[%clk 0:00:31.1]} 34... f3 {[%clk 0:00:11]} 35.
gxf3 {[%clk 0:00:31.7]} 35... g2 {[%clk 0:00:11.5]} 36. Rf2 {[%clk 0:00:32.4]}
36... Reg6 {[%clk 0:00:06.9]} 37. Nxe5 {[%clk 0:00:19.7]} 37... Rg3 {[%clk
0:00:06.8]} 38. Nf7+ {[%clk 0:00:20.4]} 38... Kg7 {[%clk 0:00:05.4]} 39. Ng5+
{[%clk 0:00:18.5]} 39... Kh6 {[%clk 0:00:04.3]} 40. f4 {[%clk 0:00:19]} 40...
R8xg5 {[%clk 0:00:02.3]} 41. fxg5+ {[%clk 0:00:19.1]} 41... Kh5 {[%clk
0:00:02.2]} 42. Rh7+ {[%clk 0:00:18.2]} 42... Kg6 {[%clk 0:00:02.6]} 43. Rxh4
{[%clk 0:00:17.8]} 1-0